bitfinex-derivatives/quotes_SOLF0:USTF0_20241120
["timestamp","ask_amount","ask_price","bid_price","bid_amount"]
[1732140503271,1.2915,237.25,237.16,6.54128378]
[1732140503272,2.34,237.23,237.16,6.54128378]
[1732140503466,2.1061,237.21,237.16,6.54128378]
[1732140503669,2.1061,237.21,237.14,2.1066]
[1732140503670,6.54128378,237.21,237.14,2.1066]
[1732140503871,6.54128378,237.19,237.14,2.1066]
[1732140505373,2.1064,237.17,237.14,2.1066]
[1732140506969,6.54128378,237.19,237.07,2.34]
[1732140507177,2.1065,237.15,237.12,2.1067]
[1732140507681,2.1065,237.16,237.12,2.1067]
[1732140508173,6.54128378,237.19,237.12,2.1067]
[1732140508577,6.54128378,237.17,237.12,2.1067]
[1732140509281,2.1065,237.16,237.12,2.1067]
[1732140511985,2.1062,237.19,237.14,6.54128378]
[1732140512288,6.54128378,237.21,237.14,6.54128378]
[1732140513183,2.1062,237.19,237.16,2.1064]
[1732140513576,2.1061,237.2,237.16,2.1064]
[1732140514187,2.1062,237.19,237.16,2.1064]
[1732140514789,2.34,237.23,237.14,6.54128378]
[1732140514979,2.1061,237.21,237.18,2.1063]
[1732140515687,2.1061,237.2,237.16,2.1064]
[1732140515892,6.54128378,237.21,237.12,6.54128378]
[1732140516081,6.54128378,237.21,237.13,3.33149991]
[1732140516286,2.1062,237.19,237.15,2.1065]
[1732140516583,2.1062,237.19,237.12,6.54128378]
[1732140516785,2.1062,237.19,237.13,4.38648125]
[1732140517084,2.1062,237.19,237.12,6.54128378]
[1732140517387,2.1062,237.19,237.13,6.07314512]
[1732140517582,2.1062,237.19,237.14,1.05357382]
[1732140517889,2.1062,237.19,237.15,1.05357382]
[1732140518084,2.1062,237.19,237.12,6.54128378]
[1732140518387,2.1062,237.19,237.16,2.1064]
[1732140518784,2.1061,237.2,237.16,2.1064]
[1732140519485,6.54128378,237.21,237.12,6.54128378]
[1732140519486,2.34,237.23,237.12,6.54128378]
[1732140519682,8.88128378,237.24,237.16,6.54128378]
[1732140519886,8.88128378,237.24,237.17,1.05357695]
[1732140520089,2.106,237.21,237.18,3.15977695]
[1732140520390,1.2915,237.25,237.18,6.54128378]
[1732140520590,1.2915,237.25,237.13,2.34]
[1732140520591,2.106,237.21,237.19,1.05348808]
[1732140520788,2.106,237.21,237.17,2.1063]
[1732140520985,6.54128378,237.22,237.18,1.05351672]
[1732140521293,2.1062,237.2,237.16,2.1064]
[1732140521487,6.54128378,237.22,237.17,1.05354297]
[1732140521688,2.1062,237.19,237.18,1.05354297]
[1732140521985,2.1062,237.19,237.16,2.1064]
[1732140522195,2.1062,237.19,237.18,1.05354916]
[1732140524396,2.1064,237.17,237.14,2.1066]
[1732140524695,2.1064,237.17,237.15,4.40340484]
[1732140524696,8.64768378,237.17,237.15,4.40340484]
[1732140524891,8.64768378,237.17,237.16,1.05364142]
[1732140528294,8.64768378,237.17,237.16,4.4092369]
[1732140528496,8.64768378,237.17,237.15,2.1065]
[1732140528792,8.64768378,237.17,237.16,6.09504321]
[1732140528996,8.64768378,237.17,237.16,4.40920836]
[1732140529493,8.64768378,237.17,237.16,6.09505297]
[1732140530600,8.64768378,237.17,237.16,1.05364678]
[1732140531798,2.1066,237.15,237.11,2.1069]
[1732140532101,6.54128378,237.13,237.12,2.73978039]
[1732140532296,6.54128378,237.13,237.12,6.09874625]
[1732140533004,8.64788378,237.15,237.12,6.09874625]
[1732140533199,8.64788378,237.15,237.13,6.09874625]
[1732140533400,8.64778378,237.15,237.14,6.09874625]
[1732140535100,8.64778378,237.15,237.14,3.35896586]
[1732140535301,2.1065,237.15,237.14,6.09873716]
[1732140535500,8.64778378,237.15,237.14,6.09873716]
[1732140538093,8.64778378,237.15,237.14,5.04497863]
[1732140538295,8.64778378,237.15,237.14,6.09873661]
[1732140538494,8.64778378,237.15,237.14,3.35896586]
[1732140538696,8.64778378,237.15,237.14,6.09873661]
[1732140540103,2.1071,237.09,237.0,6.54128378]
[1732140540298,6.54128378,237.08,237.0,6.54128378]
[1732140540695,6.54128378,237.08,237.05,2.1073]
[1732140541002,6.54128378,237.08,237.0,6.54128378]
[1732140542400,6.54128378,237.08,237.06,2.1073]
[1732140544609,2.1071,237.09,237.06,2.1073]
[1732140545409,6.54128378,237.1,237.02,6.54128378]
[1732140545609,8.64828378,237.1,237.02,6.54128378]
[1732140546208,8.64828378,237.1,237.06,2.1072]
[1732140547609,1.3247,237.23,237.07,2.1072]
[1732140547610,8.86128378,237.12,237.07,2.1072]
[1732140548304,2.107,237.1,237.07,2.1072]
[1732140549703,2.1069,237.12,237.06,6.54128378]
[1732140550309,8.64798378,237.14,237.06,6.54128378]
[1732140550508,6.54128378,237.14,237.06,6.54128378]
[1732140551310,2.1068,237.13,237.09,2.107]
[1732140552111,2.1068,237.13,237.1,1.05391759]
[1732140552311,2.1068,237.13,237.11,1.05391759]
[1732140552505,2.1068,237.13,237.09,2.107]
[1732140552706,2.1068,237.13,237.1,1.05391717]
[1732140552907,2.1068,237.13,237.11,1.05391717]
[1732140553107,2.1068,237.13,237.09,2.107]
[1732140553421,6.54128378,237.14,237.1,1.05391803]
[1732140553715,2.1068,237.12,237.11,1.05391803]
[1732140553909,2.1068,237.12,237.09,2.107]
[1732140554106,2.1068,237.12,237.11,1.05391822]
[1732140554307,2.1068,237.12,237.1,1.05391822]
[1732140554614,2.1068,237.12,237.11,1.05391822]
[1732140555216,2.1068,237.12,237.09,2.107]
[1732140555416,2.1068,237.12,237.1,1.05392595]
[1732140555613,2.1068,237.12,237.11,1.05392595]
[1732140555813,2.1068,237.12,237.11,1.05392513]
[1732140557021,2.1068,237.12,237.11,1.05391801]
[1732140557222,2.1068,237.12,237.09,2.107]
[1732140557723,2.1068,237.12,237.1,1.05394752]
[1732140558023,8.64808378,237.12,237.09,2.107]
[1732140558224,8.64808378,237.12,237.1,1.05391822]
[1732140558522,8.64808378,237.12,237.11,1.05391822]
[1732140559018,6.54128378,237.12,236.99,9.06848378]
[1732140559222,2.32,237.15,236.99,9.06848378]
[1732140559223,6.54128378,237.05,237.0,1.05404377]
[1732140559418,5.4274,237.19,237.0,1.05404377]
[1732140559419,6.54128378,237.03,237.0,1.05404377]
[1732140559722,6.54128378,237.03,237.01,3.16184377]
[1732140560019,6.54128378,237.03,237.02,1.05404377]
[1732140560714,6.54128378,237.03,237.02,2.1077]
[1732140561022,8.64868378,237.05,237.02,3.16195023]
[1732140561220,2.32,237.09,237.02,1.05425023]
[1732140561527,6.54128378,237.07,237.04,2.1075]
[1732140561721,6.54128378,237.07,237.05,1.05417573]
[1732140562021,6.54128378,237.07,237.06,1.05417573]
[1732140562221,2.32,237.11,237.06,1.05417573]
[1732140562419,2.32,237.11,237.07,1.05417573]
[1732140562619,6.54128378,237.08,237.05,2.1074]
[1732140562815,6.54128378,237.08,237.06,1.05406474]
[1732140563219,8.64848378,237.08,237.07,1.05406474]
[1732140563925,2.1072,237.08,237.07,1.05406474]
[1732140564423,2.1072,237.08,237.05,2.1074]
[1732140564624,2.1072,237.08,237.07,1.0540853]
[1732140564825,2.1074,237.05,237.02,2.1077]
[1732140565025,2.1074,237.05,237.03,1.05417161]
[1732140565317,2.1074,237.05,237.04,1.05417161]
[1732140566127,2.32,237.11,237.04,1.05417161]
[1732140566420,2.32,237.11,236.97,1.3111]
[1732140566626,2.32,237.11,237.01,2.1078]
[1732140566921,2.32,237.11,237.02,1.0541836]
[1732140567123,2.32,237.11,237.03,1.0541836]
[1732140567427,2.32,237.11,237.04,1.0541836]
[1732140567721,2.32,237.11,236.93,2.32]
[1732140568117,2.1076,237.04,237.0,2.1078]
[1732140568316,2.1076,237.04,237.01,1.05425012]
[1732140568620,2.1076,237.04,237.02,1.05425012]
[1732140568816,2.1076,237.04,237.03,1.05425012]
[1732140571729,2.1076,237.04,237.03,1.05422622]
[1732140575527,2.32,237.05,237.03,1.05422622]
[1732140575832,7.8814,237.19,237.04,1.05422622]
[1732140575833,2.32,237.08,237.04,1.05422622]
[1732140576021,2.32,237.09,237.05,1.05422622]
[1732140576223,2.32,237.09,237.06,1.05422622]
[1732140576423,2.32,237.09,237.04,2.1075]
[1732140576627,2.32,237.09,237.05,1.05411507]
[1732140576824,2.32,237.09,237.04,2.1075]
[1732140576825,2.1072,237.08,237.06,1.05411507]
[1732140577027,7.8814,237.19,237.07,1.05408452]
[1732140577028,2.32,237.12,237.07,1.05408452]
[1732140577229,2.32,237.13,237.08,1.05408452]
[1732140577425,2.32,237.14,237.09,1.05408452]
[1732140577626,2.1068,237.13,237.1,1.05408452]
[1732140577825,2.1068,237.13,237.11,1.05408452]
[1732140578028,2.1068,237.13,237.12,1.05408452]
[1732140578324,2.1068,237.12,237.09,2.1071]
[1732140578730,2.1068,237.12,237.1,1.05384308]
[1732140578924,2.32,237.14,237.05,2.1074]
[1732140579127,2.32,237.14,237.01,6.1632]
[1732140579128,2.32,237.14,237.06,1.05394252]
[1732140579327,2.32,237.14,237.07,1.05394252]
[1732140579623,2.32,237.14,237.08,1.05394252]
[1732140579828,2.32,237.14,237.09,1.05394252]
[1732140580027,2.32,237.14,237.1,1.05394252]
[1732140580332,2.32,237.14,237.06,2.1073]
[1732140580633,2.32,237.14,237.07,1.05395457]
[1732140580932,0.33091,237.16,237.08,1.05395457]
[1732140581131,2.32,237.13,237.09,1.05395457]
[1732140581335,2.32,237.13,237.1,1.05395457]
[1732140581531,2.32,237.13,237.06,2.1073]
[1732140581928,2.32,237.13,237.07,1.05395714]
[1732140582832,2.32,237.13,237.08,1.05395714]
[1732140583028,2.32,237.13,237.06,2.1073]
[1732140583029,2.32,237.13,237.09,1.05395714]
[1732140583227,2.32,237.13,237.1,1.05396165]
[1732140583431,2.32,237.13,237.06,2.1073]
[1732140583627,2.32,237.13,237.07,1.05396659]
[1732140583835,2.32,237.13,237.08,1.05396659]
[1732140584035,2.32,237.13,237.09,1.05396659]
[1732140584235,2.32,237.13,237.1,1.05396659]
[1732140584437,2.32,237.13,237.06,2.1073]
[1732140584732,2.32,237.13,237.07,1.0539974]
[1732140584929,2.107,237.1,237.08,1.0539974]
[1732140585135,2.107,237.1,237.06,2.1073]
[1732140585430,2.107,237.1,237.07,3.16116229]
[1732140585631,2.1069,237.11,237.08,1.05396229]
[1732140585831,2.1069,237.11,237.09,1.05396229]
[1732140586135,2.1069,237.11,237.1,1.05396229]
[1732140588735,2.1069,237.11,237.1,1.05397373]
[1732140590240,4.4268,237.13,237.1,1.05397373]
[1732140590436,4.4268,237.13,237.11,1.05397373]
[1732140590638,4.4268,237.13,237.09,2.107]
[1732140590844,2.1068,237.12,237.1,1.05389916]
[1732140591141,2.1068,237.12,237.11,1.05389916]
[1732140592039,2.1068,237.12,237.09,2.107]
[1732140592245,2.1068,237.12,237.08,2.1071]
[1732140592442,2.1068,237.12,237.1,1.05394526]
[1732140592847,2.1068,237.12,237.11,1.05394526]
[1732140593248,0.33091,237.16,237.11,1.05394526]
[1732140593449,2.32,237.15,237.12,1.05394526]
[1732140593749,2.32,237.15,237.1,2.107]
[1732140593945,2.32,237.15,237.11,1.05388111]
[1732140594246,2.1067,237.13,237.12,1.05388111]
[1732140595149,2.32,237.15,237.08,2.1071]
[1732140595350,2.1069,237.11,237.08,2.1071]
[1732140595554,2.1069,237.11,237.09,1.05389759]
[1732140595848,2.1069,237.11,237.1,1.05389759]
[1732140596648,2.32,237.15,237.05,2.1074]
[1732140596846,2.1071,237.09,237.06,1.05401204]
[1732140597043,2.1071,237.09,237.07,1.05401204]
[1732140597252,2.1071,237.09,237.08,1.05401204]
[1732140597645,2.1071,237.09,237.05,2.1074]
[1732140597842,2.1071,237.09,237.06,1.05402583]
[1732140598043,2.1071,237.09,237.07,1.05402583]
[1732140598246,2.1071,237.09,237.08,1.05402583]
[1732140598455,2.1071,237.09,237.05,2.1074]
[1732140598752,2.1071,237.09,237.08,1.05402847]
[1732140598952,2.1071,237.09,237.08,1.05402843]
[1732140601056,2.1071,237.09,237.08,1.05403106]
[1732140604159,2.1071,237.09,237.08,1.05402344]
[1732140606657,2.1071,237.09,237.08,1.05402711]
[1732140607458,2.1071,237.09,237.05,2.1074]
[1732140607655,2.1071,237.09,237.06,1.05403696]
[1732140608157,2.1071,237.09,237.07,1.05402694]
[1732140608356,2.1071,237.09,237.08,1.05402694]
[1732140611056,2.32,237.11,237.08,1.05402694]
[1732140611258,2.107,237.1,237.09,1.05402694]
[1732140615957,2.32,237.12,237.09,1.05401622]
[1732140616162,2.1069,237.11,237.1,1.05401622]
[1732140618363,1.2593,237.19,237.1,1.05401622]
[1732140618567,2.1068,237.12,237.11,1.05401622]
[1732140619269,4.4268,237.12,237.11,1.05401622]
[1732140620867,2.1071,237.09,237.05,2.1074]
[1732140621263,2.1071,237.09,237.06,1.05402211]
[1732140621570,2.1071,237.09,237.07,1.05402211]
[1732140621766,2.1071,237.09,237.08,1.05402211]
[1732140623869,2.1076,237.04,237.0,2.1079]
[1732140624065,2.1076,237.04,237.01,1.05424567]
[1732140624269,2.3,237.05,237.02,1.05424567]
[1732140624570,2.1075,237.04,237.03,1.05424567]
[1732140626369,2.1078,237.01,236.97,2.1081]
[1732140626669,2.1078,237.01,236.98,1.05437076]
[1732140626970,2.1078,237.01,236.99,1.05437076]
[1732140627275,2.1078,237.01,237.0,1.05437076]
[1732140630769,2.108,236.99,236.95,2.1083]
[1732140630967,2.108,236.99,236.96,1.05443892]
[1732140631272,2.108,236.99,236.97,1.05443892]
[1732140631869,2.108,236.99,236.98,1.05443892]
[1732140633972,2.108,236.99,236.95,2.1083]
[1732140634275,2.108,236.99,236.96,1.05444226]
[1732140634469,2.108,236.99,236.97,1.05444226]
[1732140634672,2.108,236.99,236.95,2.1083]
[1732140634673,2.108,236.99,236.98,1.05444226]
[1732140639575,2.3,237.04,236.98,1.05444226]
[1732140639773,2.1078,237.01,236.99,1.05439919]
[1732140639971,2.1078,237.01,236.98,2.108]
[1732140640376,2.1077,237.02,236.99,2.1079]
[1732140640978,2.1077,237.02,237.0,1.05435409]
[1732140641176,2.1077,237.02,236.99,2.1079]
[1732140641485,2.1077,237.02,237.0,1.05433049]
[1732140641677,2.1077,237.02,237.01,1.05433049]
[1732140642371,1.2194,237.09,237.01,1.05433049]
[1732140642577,2.1074,237.05,237.01,2.1077]
[1732140642981,2.3,237.08,236.94,6.1123]
[1732140643277,2.3,237.08,236.95,1.05429777]
[1732140643482,2.3,237.08,236.96,1.05429777]
[1732140643677,2.3,237.08,236.94,6.1123]
[1732140643882,2.1075,237.04,236.99,2.1079]
[1732140644383,2.1075,237.04,237.0,1.05430689]
[1732140644684,2.1075,237.04,237.01,1.05430689]
[1732140644880,2.1075,237.04,237.0,2.1079]
[1732140645181,2.1075,237.04,237.01,1.05428769]
[1732140645384,2.1075,237.04,237.0,2.1079]
[1732140645580,2.1077,237.02,237.01,1.05428096]
[1732140646981,2.1077,237.02,236.98,2.108]
[1732140647283,2.1077,237.02,236.99,1.05431793]
[1732140647485,2.1077,237.02,237.0,1.05431793]
[1732140647682,2.1077,237.02,237.01,1.05431793]
[1732140650888,2.1077,237.02,236.99,2.1079]
[1732140651185,2.1077,237.02,237.0,1.05429197]
[1732140651386,2.1077,237.02,237.01,1.05429197]
[1732140654585,0.36005,237.13,237.01,1.05429197]
[1732140654889,0.36005,237.13,237.03,2.1076]
[1732140655191,0.36005,237.13,237.04,1.05429197]
[1732140655389,0.36005,237.13,237.07,2.1072]
[1732140655390,2.1069,237.11,237.07,2.1072]
[1732140655590,2.1069,237.11,237.08,1.05429197]
[1732140655787,2.107,237.1,237.09,1.05429197]
[1732140656090,2.3,237.12,236.99,2.3]
[1732140656292,2.3,237.12,237.0,1.05406991]
[1732140656590,2.3,237.12,237.01,1.05406991]
[1732140656793,2.3,237.12,237.03,2.1076]
[1732140657090,2.3,237.12,237.04,1.05406991]
[1732140657287,2.1072,237.08,237.05,1.05406991]
[1732140657487,2.1072,237.08,237.06,1.05406991]
[1732140657682,2.1072,237.08,237.03,2.1076]
[1732140657984,2.1072,237.08,237.04,1.05412596]
[1732140658183,2.3,237.12,237.05,1.05412596]
[1732140658389,2.3,237.12,237.06,1.05412596]
[1732140658583,2.3,237.12,236.98,5.0]
[1732140658886,2.1072,237.08,237.02,2.1076]
[1732140659083,2.1072,237.08,237.03,1.05413158]
[1732140659283,2.1072,237.08,237.04,1.05413158]
[1732140659485,2.1072,237.08,237.05,1.05413158]
[1732140659689,2.1072,237.08,237.06,1.05413158]
[1732140659894,2.1072,237.08,237.03,2.1076]
[1732140660094,2.1072,237.08,237.04,1.05410931]
[1732140660283,2.1072,237.08,237.05,1.05410931]
[1732140660484,2.1072,237.08,237.06,1.05411701]
[1732140660691,2.1072,237.08,237.03,2.1076]
[1732140660891,2.1072,237.08,237.04,1.05411761]
[1732140661092,2.1072,237.08,237.05,1.05411761]
[1732140661298,2.1072,237.08,237.06,1.05411761]
[1732140661495,2.1072,237.08,237.03,2.1076]
[1732140661690,2.1072,237.08,237.04,1.05412459]
[1732140661995,2.1072,237.08,237.05,1.05412459]
[1732140662194,2.1072,237.08,237.06,1.05412459]
[1732140662394,2.1072,237.08,237.03,2.1076]
[1732140665296,2.1078,237.01,237.0,1.05437692]
[1732140665589,2.1078,237.01,236.98,5.0]
[1732140665794,2.1078,237.01,236.99,1.05442414]
[1732140665992,2.1078,237.01,236.98,5.0]
[1732140666194,2.1078,237.01,237.0,1.05442166]
[1732140669800,2.1078,237.01,237.0,1.05442174]
[1732140670894,2.1077,237.02,237.0,1.05442174]
[1732140671099,2.1077,237.02,237.01,1.05442174]
[1732140672101,2.5521,237.12,237.01,1.05442174]
[1732140672296,2.5521,237.12,237.03,2.1076]
[1732140672297,1.3068,237.12,237.03,2.1076]
[1732140672505,1.3068,237.12,237.04,1.05442174]
[1732140672704,1.3068,237.12,237.03,2.1076]
[1732140673000,1.3068,237.12,237.04,1.05408156]
[1732140673304,2.3,237.13,237.05,3.16148156]
[1732140673504,2.3,237.13,237.06,1.05408156]
[1732140673696,2.107,237.1,237.07,1.05408156]
[1732140673901,2.5314,237.19,237.08,1.05408156]
[1732140674101,2.3,237.18,237.09,1.05408156]
[1732140674306,2.3,237.18,237.07,2.1072]
[1732140674503,2.1065,237.15,237.08,1.0540147]
[1732140674703,2.3,237.17,237.09,3.1610147]
[1732140674905,2.3,237.17,237.1,1.0540147]
[1732140675103,2.3,237.17,237.09,2.107]
[1732140675298,2.3,237.17,237.1,1.05399949]
[1732140675498,0.33738,237.2,237.09,2.3]
[1732140675802,0.33738,237.2,237.1,2.27559558]
[1732140675997,0.33738,237.2,237.1,2.4367]
[1732140676304,0.33738,237.2,237.11,1.05370824]
[1732140676605,0.33738,237.2,237.12,1.05370824]
[1732140676803,0.33738,237.2,237.13,1.05370824]
[1732140677105,0.33738,237.2,237.14,1.05370824]
[1732140677305,2.1062,237.19,237.15,1.05370824]
[1732140677603,2.1062,237.19,237.16,1.05370824]
[1732140677800,2.1062,237.19,237.13,2.1066]
[1732140678009,2.1062,237.19,237.14,1.05363925]
[1732140678203,2.1062,237.19,237.15,1.05363925]
[1732140678506,2.1062,237.19,237.13,2.1066]
[1732140678703,2.1062,237.19,237.14,1.05363024]
[1732140678903,2.1062,237.19,237.15,1.05364108]
[1732140679103,0.33738,237.2,237.1,3.7184]
[1732140679300,0.33738,237.2,237.11,1.05365105]
[1732140679505,0.33738,237.2,237.12,1.05365105]
[1732140679703,2.3,237.19,237.1,2.4367]
[1732140679904,2.3,237.19,237.11,1.0537583]
[1732140680202,2.3,237.19,237.1,2.4367]
[1732140680504,2.3,237.19,237.11,1.05378535]
[1732140680800,2.3,237.19,237.1,2.4367]
[1732140681006,2.3,237.19,237.11,1.05379404]
[1732140681205,2.1066,237.15,237.1,2.4367]
[1732140681408,2.3,237.19,237.11,1.05379455]
[1732140681609,2.3,237.19,237.1,2.4367]
[1732140681808,2.3,237.19,237.11,1.05379455]
[1732140682107,2.3,237.19,237.1,2.4367]
[1732140682306,2.3,237.19,237.11,1.05379803]
[1732140682505,2.3,237.19,237.1,2.4367]
[1732140682707,2.1064,237.17,237.11,3.16061657]
[1732140683007,2.1064,237.17,237.12,1.05371657]
[1732140683208,2.1064,237.17,237.11,2.1069]
[1732140683509,2.3,237.19,237.12,1.0537265]
[1732140683710,2.1066,237.14,237.1,4.5437]
[1732140683915,2.1066,237.14,237.11,1.05378525]
[1732140684207,2.1066,237.14,237.1,2.4367]
[1732140684412,2.1066,237.14,237.11,1.05378695]
[1732140684705,2.1066,237.14,237.1,2.4367]
[1732140684910,2.1066,237.14,237.11,1.05379454]
[1732140685110,2.1066,237.14,237.1,2.4367]
[1732140685307,2.3,237.19,237.06,2.3]
[1732140685308,2.1069,237.12,237.06,2.3]
[1732140685506,2.3,237.19,237.07,1.05380579]
[1732140685706,2.3,237.19,237.02,2.3]
[1732140685903,1.215,237.18,237.04,2.1075]
[1732140686310,2.1071,237.09,237.05,1.05395079]
[1732140686513,2.1071,237.09,237.06,1.05395079]
[1732140686815,2.1071,237.09,237.07,1.05395079]
[1732140687113,2.1071,237.09,237.04,2.1075]
[1732140687310,2.1071,237.09,237.05,1.05398949]
[1732140687511,2.1071,237.09,237.06,1.05398949]
[1732140687712,2.1071,237.09,237.07,1.05398949]
[1732140687912,2.1071,237.09,237.05,2.1074]
[1732140688215,2.1071,237.09,237.06,1.05398949]
[1732140688408,2.1071,237.09,237.07,1.05398949]
[1732140688611,2.1071,237.09,237.05,2.1074]
[1732140688816,2.1071,237.09,237.06,1.05398991]
[1732140689016,2.1071,237.09,237.07,1.05398991]
[1732140689318,2.1071,237.09,237.04,2.1075]
[1732140689519,2.3,237.13,237.05,1.053972]
[1732140689817,2.3,237.13,237.06,1.053972]
[1732140690018,2.3,237.13,237.07,1.053972]
[1732140690219,2.3,237.13,237.04,2.1075]
[1732140690418,2.3,237.13,237.05,1.05399451]
[1732140690621,2.3,237.13,237.06,1.05399451]
[1732140690822,2.3,237.13,237.07,1.05399451]
[1732140691122,2.3,237.13,237.06,2.1073]
[1732140691414,2.107,237.11,237.07,1.0539897]
[1732140691614,2.107,237.11,237.07,2.1072]
[1732140692122,2.3,237.13,237.02,2.3]
[1732140692416,2.107,237.1,237.05,2.1073]
[1732140692617,2.107,237.1,237.06,1.05397638]
[1732140692824,2.107,237.1,237.07,1.05397638]
[1732140693021,2.107,237.1,237.05,2.1073]
[1732140693222,2.107,237.1,237.06,1.0539897]
[1732140693422,2.107,237.1,237.07,1.0539897]
[1732140693717,2.107,237.1,237.05,2.1073]
[1732140693915,2.107,237.1,237.06,1.0539897]
[1732140694112,2.107,237.1,237.07,1.0539897]
[1732140694320,2.107,237.1,237.05,2.1073]
[1732140694520,2.107,237.1,237.06,1.0539897]
[1732140694718,2.107,237.1,237.07,1.0539897]
[1732140694918,2.107,237.1,237.05,2.1073]
[1732140695123,2.107,237.1,237.06,1.05399306]
[1732140695324,2.107,237.1,237.07,1.05399306]
[1732140695519,2.107,237.1,237.05,2.1073]
[1732140695721,2.107,237.1,237.06,1.05398968]
[1732140696021,2.107,237.1,237.07,1.05398968]
[1732140696222,2.107,237.1,237.05,2.1073]
[1732140696423,2.107,237.1,237.06,1.05398968]
[1732140696619,2.107,237.1,237.07,1.05398968]
[1732140696817,2.107,237.1,237.05,2.1073]
[1732140697022,2.107,237.1,237.06,1.05399317]
[1732140697219,2.1069,237.12,237.07,1.05399317]
[1732140697424,2.1069,237.12,237.02,2.3]
[1732140697724,2.3,237.17,237.03,1.05399317]
[1732140697921,2.1069,237.12,237.07,2.1072]
[1732140698123,2.1069,237.12,237.08,1.05399317]
[1732140698428,2.1069,237.12,237.07,2.1072]
[1732140698623,2.1069,237.11,237.08,1.05393426]
[1732140698823,2.1069,237.11,237.07,2.1072]
[1732140699030,2.1069,237.11,237.08,1.05393383]
[1732140699327,2.1069,237.11,237.07,2.1072]
[1732140699522,2.1069,237.11,237.08,1.0539342]
[1732140699722,2.1069,237.11,237.07,2.1072]
[1732140700128,2.1069,237.11,237.08,1.0539342]
[1732140700426,2.1069,237.11,237.07,2.1072]
[1732140700626,2.1069,237.11,237.08,3.16103842]
[1732140700822,2.1069,237.11,237.08,2.1071]
[1732140703324,2.1065,237.16,237.13,2.1067]
[1732140703531,2.3,237.21,237.02,2.3]
[1732140703730,2.3,237.21,237.03,1.05369985]
[1732140703929,2.3,237.21,237.04,1.05369985]
[1732140704125,2.1066,237.15,237.05,1.05369985]
[1732140704329,2.1066,237.15,237.11,2.1068]
[1732140704523,2.1066,237.15,237.12,1.05369985]
[1732140704723,2.1066,237.15,237.13,1.05369985]
[1732140704930,2.1066,237.15,237.11,2.1068]
[1732140705131,2.1066,237.15,237.12,1.05370928]
[1732140705333,2.1066,237.15,237.13,1.05370928]
[1732140705633,2.1066,237.15,237.11,2.1068]
[1732140705836,2.1066,237.15,237.12,1.05372909]
[1732140706029,2.1066,237.15,237.11,2.1068]
[1732140706234,2.1066,237.15,237.12,1.05372909]
[1732140706530,2.1066,237.15,237.13,1.05372909]
[1732140706732,2.1066,237.15,237.11,2.1068]
[1732140706928,2.1066,237.15,237.12,1.05373043]
[1732140707131,2.1066,237.15,237.13,1.05373043]
[1732140707330,2.1066,237.15,237.11,2.1068]
[1732140707538,2.1066,237.15,237.12,1.0537314]
[1732140707836,2.1066,237.15,237.11,2.1068]
[1732140708037,2.1066,237.15,237.12,1.0537374]
[1732140708238,2.1066,237.15,237.13,1.0537374]
[1732140708540,2.1066,237.15,237.11,2.1068]
[1732140708740,2.1066,237.15,237.12,1.05373614]
[1732140709039,2.1066,237.14,237.13,1.05373614]
[1732140709243,2.3,237.21,237.09,2.107]
[1732140709442,2.3,237.21,237.1,1.053782]
[1732140709638,2.3,237.21,237.11,1.053782]
[1732140709832,2.3,237.21,237.08,2.3]
[1732140710032,2.3,237.21,237.09,1.05379535]
[1732140710235,2.1067,237.14,237.1,1.05379535]
[1732140710439,2.1067,237.14,237.11,1.05379535]
[1732140710641,2.1067,237.14,237.08,2.3]
[1732140710843,2.1067,237.14,237.09,1.05379002]
[1732140711140,2.1067,237.14,237.1,1.05379002]
[1732140711340,2.1067,237.14,237.11,1.05379002]
[1732140711543,2.1067,237.14,237.08,2.3]
[1732140711744,2.1067,237.14,237.09,1.05379275]